bitfinex-derivatives/quotes_ETHF0:USTF0_20251006
["timestamp","ask_amount","ask_price","bid_price","bid_amount"]
[1759721871077,0.77817957,4535.9,4535.8,0.7747]
[1759721871277,0.99917957,4535.9,4535.8,0.7747]
[1759721871866,0.77817957,4536.2,4536.1,0.7502]
[1759721872070,1.4715659,4536.2,4536.1,0.7502]
[1759721873182,2.2479659,4536.2,4536.1,0.7502]
[1759721873378,2.2479659,4536.2,4536.1,0.5433]
[1759721874374,2.2479659,4536.2,4536.1,0.7502]
[1759721877283,2.0269659,4536.2,4536.1,0.5433]
[1759721877580,2.2479659,4536.2,4536.1,0.5433]
[1759721879076,2.2479659,4536.2,4536.1,0.7502]
[1759721880383,1.9165659,4536.2,4536.1,0.7502]
[1759721880678,0.77817957,4536.4,4536.2,0.39664]
[1759721880980,0.77817957,4536.4,4536.3,0.7502]
[1759721882183,0.99997957,4536.4,4536.3,0.7502]
[1759721883875,1.55457957,4536.4,4536.3,0.5433]
[1759721884177,0.7764,4535.8,4535.7,0.00235687]
[1759721884381,1.77557957,4535.8,4535.7,0.31945687]
[1759721885482,1.77557957,4535.8,4535.7,0.54565687]
[1759721889789,0.77817957,4535.8,4535.7,1.14924687]
[1759721890084,3.2078,4536.6,4536.4,0.3171]
[1759721890279,0.22404674,4536.8,4536.7,0.7502]
[1759721890486,0.69675099,4536.8,4536.7,0.7502]
[1759721892693,0.47495099,4536.8,4536.7,0.7502]
[1759721892989,0.00224674,4536.8,4536.7,0.7502]
[1759721893883,0.22404674,4536.8,4536.7,0.7502]
[1759721894089,0.77864674,4536.8,4536.7,0.7502]
[1759721894291,1.17523674,4536.8,4536.7,0.7502]
[1759721894483,0.77864674,4536.8,4536.7,0.7502]
[1759721895286,0.22404674,4536.8,4536.7,0.7502]
[1759721895486,0.77864674,4536.8,4536.7,0.7502]
[1759721896892,0.7764,4536.5,4536.4,0.5433]
[1759721897092,1.55457957,4536.5,4536.4,0.7502]
[1759721899389,0.77817957,4536.5,4536.4,0.7502]
[1759721899590,0.00224674,4536.8,4536.7,1.1657]
[1759721900285,0.75774674,4536.8,4536.7,0.7691]
[1759721900487,0.42944674,4536.8,4536.7,0.7691]
[1759721900695,0.75774674,4536.8,4536.7,0.7691]
[1759721901697,0.75774674,4536.8,4536.7,0.5506]
[1759721902194,0.7555,4536.5,4536.4,0.5506]
[1759721902495,1.53367957,4536.5,4536.4,0.5506]
[1759721903192,1.53367957,4536.5,4536.4,0.7691]
[1759721904193,0.7555,4536.5,4536.4,0.7691]
[1759721904398,1.53367957,4536.5,4536.4,0.7691]
[1759721907401,1.20537957,4536.5,4536.4,0.7691]
[1759721907599,0.2152,4536.5,4536.4,0.7691]
[1759721907794,0.99562631,4536.8,4536.7,1.1657]
[1759721908499,1.53592631,4536.8,4536.7,1.1657]
[1759721910600,0.00224674,4536.8,4536.7,1.1657]
[1759721910806,0.99337957,4537.6,4537.5,1.29453]
[1759721911109,1.67720414,4537.6,4537.5,1.29453]
[1759721911311,2.00551235,4537.6,4537.5,1.29453]
[1759721911510,2.00551235,4537.6,4537.5,0.898]
[1759721911804,2.00720725,4537.6,4537.5,0.898]
[1759721912212,1.53537447,4537.6,4537.5,0.898]
[1759721912611,1.20707447,4537.6,4537.5,0.898]
[1759721913709,1.52487447,4537.6,4537.5,0.898]
[1759721913916,0.99507447,4537.6,4537.5,0.898]
[1759721914410,1.20427447,4537.6,4537.5,0.898]
[1759721914610,1.52207447,4537.6,4537.5,0.898]
[1759721915409,1.20427447,4537.6,4537.5,0.898]
[1759721916210,1.67663527,4537.6,4537.5,0.898]
[1759721917814,1.67663527,4537.6,4537.5,0.5506]
[1759721917815,1.99443527,4537.6,4537.5,0.5506]
[1759721919002,1.99443527,4537.6,4537.5,0.7745]
[1759721919405,1.99443527,4537.6,4537.5,0.9064]
[1759721920513,1.78523527,4537.6,4537.5,0.9064]
[1759721920813,1.46743527,4537.6,4537.5,0.9064]
[1759721921012,0.6892557,4537.6,4537.5,0.9064]
[1759721926216,1.2162557,4537.6,4537.5,0.9064]
[1759721926416,1.2162557,4537.6,4537.5,1.30293]
[1759721928215,1.2162557,4537.6,4537.5,0.3376]
[1759721928416,1.2162557,4537.6,4537.5,0.4238]
[1759721928417,0.8984557,4537.6,4537.5,0.4238]
[1759721928618,0.0016949,4537.6,4537.5,0.8712]
[1759721929415,3.6353,4538.7,4538.6,0.4238]
[1759721929616,3.6353,4538.7,4538.6,0.7365]
[1759721929617,4.4244879,4538.7,4538.6,0.7365]
[1759721930414,4.42636083,4538.7,4538.6,0.7365]
[1759721930620,0.4275,4538.4,4538.3,0.60686]
[1759721930824,1.2166879,4538.4,4538.3,0.82026]
[1759721931220,1.2166879,4538.4,4538.3,1.13296]
[1759721931524,0.4275,4538.1,4538.0,0.3127]
[1759721931725,1.67646731,4538.1,4538.0,0.3127]
[1759721931924,1.67646731,4538.1,4538.0,0.5231]
[1759721932628,1.67646731,4538.1,4538.0,0.8712]
[1759721932825,1.36026731,4538.1,4538.0,0.8712]
[1759721933926,0.2055,4538.1,4538.0,0.8712]
[1759721934227,0.2055,4538.4,4538.3,0.92256]
[1759721934424,0.67450034,4538.4,4538.3,1.13296]
[1759721934826,1.21270034,4538.4,4538.3,0.3127]
[1759721935027,0.7437,4538.4,4538.3,0.5231]
[1759721939921,1.21262229,4538.4,4538.3,0.5231]
[1759721940526,1.21262229,4538.4,4538.3,0.7365]
[1759721941621,1.21262229,4538.4,4538.3,0.5231]
[1759721944124,0.39646,4538.3,4538.0,3.6552]
[1759721944334,0.7437,4538.1,4538.0,3.8656]
[1759721944636,0.7437,4538.1,4538.0,4.079]
[1759721944818,0.4275,4538.1,4538.0,4.079]
[1759721945025,0.93276731,4538.5,4538.4,0.4238]
[1759721945225,1.60611893,4538.5,4538.4,1.13295]
[1759721945525,2.14431893,4538.5,4538.4,0.7365]
[1759721951829,0.2055,4538.3,4538.2,0.3127]
[1759721952031,0.46785162,4538.3,4538.2,0.7365]
[1759721952232,0.46785162,4538.3,4538.2,5.7365]
[1759721952438,0.00187293,4538.7,4538.6,0.7365]
[1759721953132,0.46987269,4538.7,4538.6,0.7365]
[1759721957741,0.46987269,4538.7,4538.6,0.9575]
[1759721963734,0.3328,4539.8,4539.7,0.4426]
[1759721963943,1.0200809,4539.8,4539.7,0.4426]
[1759721964140,1.2438809,4539.8,4539.7,0.4426]
[1759721964333,1.2438809,4539.8,4539.7,0.2261]
[1759721964538,1.2438809,4539.8,4539.5,0.221]
[1759721964747,0.7784444,4539.8,4539.5,0.22264185]
[1759721964947,0.7784444,4539.8,4539.5,0.00164185]
[1759721964948,1.17195,4539.6,4539.5,0.00164185]
[1759721967044,1.39295,4539.6,4539.5,0.00164185]
[1759721975849,1.85053013,4539.6,4539.5,0.00164185]
[1759721981145,0.7682,4538.3,4538.2,1.40244783]
[1759721982050,0.7682,4538.3,4538.2,1.73997501]
[1759721982448,0.7682,4538.3,4538.2,1.96267501]
[1759721985853,0.7682,4538.3,4538.2,1.40527501]
[1759721986351,0.39646,4538.4,4538.2,1.62797501]
[1759721986551,0.72986,4538.4,4538.3,0.7723]
[1759721986753,0.93856,4538.4,4538.3,0.7723]
[1759721988251,0.93856,4538.4,4538.3,1.95984783]
[1759721989257,0.93856,4538.4,4538.3,0.7723]
[1759721989858,1.16466,4538.4,4538.3,0.4376]
[1759721990051,0.7673,4538.3,4538.2,1.19037501]
[1759721990560,0.7673,4538.3,4538.2,1.40397501]
[1759721991158,0.7673,4538.3,4538.2,1.71927501]
[1759721991450,0.7673,4538.3,4538.2,0.00282718]
[1759721991451,0.9883,4538.3,4538.2,0.00282718]
[1759721991853,0.7606,4538.3,4538.2,0.73682718]
[1759721992048,0.9883,4538.3,4538.2,0.21642718]
[1759721992254,0.9883,4538.3,4538.2,0.00282718]
[1759721993860,0.9883,4538.3,4538.2,0.21642718]
[1759721996462,0.9883,4538.3,4538.2,0.00282718]
[1759722000266,0.9883,4538.3,4538.2,0.73682718]
[1759722000466,0.9883,4538.3,4538.2,0.42152718]
[1759722000766,0.7673,4538.3,4538.2,0.42152718]
[1759722000960,0.9883,4538.3,4538.2,0.42152718]
[1759722001560,0.7673,4538.3,4538.2,0.42152718]
[1759722001856,0.9883,4538.3,4538.2,0.42152718]
[1759722002063,0.9883,4538.3,4538.2,0.00282718]
[1759722008475,0.7673,4538.3,4538.2,0.00282718]
[1759722008670,0.7673,4538.3,4538.2,0.42152718]
[1759722008883,0.3229,4538.3,4538.2,2.32084501]
[1759722009179,0.3229,4538.3,4538.2,1.92437501]
[1759722009380,0.5396,4538.3,4538.2,1.92437501]
[1759722009881,1.76534736,4538.3,4538.2,1.19139969]
[1759722010181,1.76534736,4538.3,4538.2,0.00282718]
[1759722010771,1.76534736,4538.3,4538.2,1.19195968]
[1759722012673,1.76534736,4538.3,4538.2,0.00282718]
[1759722012875,1.76534736,4538.3,4538.2,1.19199061]
[1759722014186,1.76534736,4538.3,4538.2,0.00282718]
[1759722015190,5.43128621,4538.3,4538.2,0.00282718]
[1759722018384,5.43128621,4538.3,4538.2,7.18e-06]
[1759722018590,1.13102,4537.6,4537.4,1.18924407]
[1759722018792,0.81135,4537.3,4537.2,1.18924407]
[1759722018989,2.12909736,4537.3,4537.2,1.18924407]
[1759722019189,1.80939736,4537.3,4537.2,0.2228]
[1759722019589,1.80939736,4537.3,4537.2,0.22464075]
[1759722019784,0.7345,4537.3,4537.2,0.78234075]
[1759722021289,0.7345,4537.3,4537.2,0.44654075]
[1759722021593,0.7345,4537.3,4537.2,0.78234075]
[1759722030995,0.7345,4537.3,4537.2,0.22464075]
[1759722031191,1.51154736,4537.3,4537.2,0.22464075]
[1759722031501,1.73254736,4537.3,4537.2,0.22464075]
[1759722031797,1.51154736,4537.3,4537.2,0.22464075]
[1759722032389,1.51154736,4537.3,4537.2,0.00184075]
[1759722042907,0.4398,4536.6,4536.5,1.18924407]
[1759722043100,0.4398,4536.6,4536.0,1.00173341]
[1759722043101,1.14795,4536.1,4536.0,1.00173341]
[1759722043408,1.14795,4536.1,4535.5,0.7419]
[1759722043409,0.4398,4535.6,4535.5,0.7419]
[1759722043907,0.4398,4535.6,4535.5,0.7444947]
[1759722043908,0.75354691,4535.6,4535.5,0.7444947]
[1759722044298,0.75354691,4535.6,4535.5,0.0025947]
[1759722045205,0.75354691,4535.6,4535.5,0.2296947]
[1759722046410,0.75354691,4535.6,4535.5,0.0025947]
[1759722050211,0.75354691,4535.6,4534.4,3.2078]
[1759722050212,1.17358,4534.6,4534.4,3.2078]
[1759722050514,1.30319,4534.5,4534.4,3.2078]
[1759722050809,0.9064,4534.5,4534.4,3.655]
[1759722051012,0.9064,4534.5,4534.4,3.9726]
[1759722051213,0.9064,4534.5,4534.4,3.97506999]
[1759722052111,0.9064,4534.5,4534.4,3.65746999]
[1759722052415,0.9064,4534.5,4534.4,3.97506999]
[1759722053613,0.1296,4535.0,4534.4,3.97506999]
[1759722053614,0.5492,4534.9,4534.8,0.7648]
[1759722053808,0.7768,4535.4,4535.3,0.7648]
[1759722054111,0.5492,4535.0,4534.9,0.7648]
[1759722054318,0.7768,4535.0,4534.9,0.7648]
[1759722057714,0.221,4535.4,4534.9,0.7648]
[1759722057914,0.5597,4535.3,4535.2,0.226]
[1759722058110,0.7768,4535.3,4535.2,0.226]
[1759722058416,0.7768,4535.3,4535.2,0.5436]
[1759722058718,0.7768,4535.3,4535.2,0.226]
[1759722060320,0.39675,4535.1,4535.0,0.226]
[1759722060518,0.84145,4535.1,4535.0,0.226]
[1759722060914,0.4447,4535.1,4535.0,0.5436]
[1759722061109,0.7768,4535.1,4535.0,0.7648]
[1759722061309,0.5743,4534.5,4534.1,0.71443]
[1759722061514,0.9064,4534.5,4534.2,0.39681]
[1759722061717,0.9064,4534.5,4534.4,0.76726999]
[1759722062719,0.9064,4534.5,4534.4,0.44966999]
[1759722062920,0.9064,4534.5,4534.4,0.22846999]
[1759722063321,0.9064,4534.5,4534.4,0.54606999]
[1759722063522,0.9064,4534.5,4534.4,0.76726999]
[1759722065816,0.9064,4534.5,4534.4,0.00246999]
[1759722066013,1.83994716,4534.5,4534.4,0.00246999]
[1759722067419,1.83994716,4534.5,4534.4,0.22846999]
[1759722067623,1.1274,4534.5,4534.4,0.22846999]
[1759722067817,0.9064,4534.5,4534.4,0.62526999]
[1759722068018,0.7768,4534.5,4534.4,1.16406999]
[1759722068322,0.7768,4534.5,4534.4,0.76726999]
[1759722068521,0.9064,4534.5,4534.4,0.22846999]
[1759722070924,0.9064,4534.5,4534.4,0.76726999]
[1759722071319,0.9064,4534.5,4534.4,0.00246999]
[1759722074720,1.1274,4534.5,4534.4,0.00246999]
[1759722075227,0.9064,4534.5,4534.4,0.00246999]
[1759722075527,1.1274,4534.5,4534.4,0.22846999]
[1759722076928,1.1274,4534.5,4534.4,0.00246999]
[1759722078429,0.9064,4534.5,4534.4,0.00246999]
[1759722078631,1.1274,4534.5,4534.4,0.00246999]
[1759722079534,0.9064,4534.5,4534.4,0.74296999]
[1759722080231,0.9064,4534.5,4534.4,0.42366999]
[1759722081428,0.9064,4534.5,4534.4,1.60659454]
[1759722083138,0.9064,4534.5,4534.4,1.92589454]
[1759722085136,0.3273,4534.7,4534.4,2.00339454]
[1759722085436,0.5486,4534.7,4534.6,0.7405]
[1759722085732,0.754,4534.7,4534.6,0.7405]
[1759722087433,0.754,4534.7,4534.6,1.13728]
[1759722087434,0.5486,4534.7,4534.6,1.13728]
[1759722087635,0.6782,4535.0,4534.9,0.7405]
[1759722087840,0.39676,4534.9,4534.6,4.93102455]
[1759722088140,0.754,4534.7,4534.6,5.35222455]
[1759722091744,0.754,4534.7,4534.6,4.1693]
[1759722091943,0.754,4534.7,4534.6,5.35830052]
[1759722092237,0.754,4534.7,4534.6,4.1693]
[1759722092742,0.5486,4534.7,4534.6,4.1693]
[1759722093844,0.5486,4534.7,4534.6,5.35830894]
[1759722094048,0.754,4534.7,4534.6,4.1693]
[1759722094244,0.754,4534.7,4534.6,0.2053]
[1759722094544,0.754,4534.7,4534.6,1.18902994]
[1759722096448,0.754,4534.7,4534.6,1.40582994]
[1759722096648,0.754,4534.7,4534.6,0.2168]
[1759722098144,0.754,4534.7,4534.6,3.4246]
[1759722099052,0.754,4534.7,4534.6,3.7327]
[1759722099247,0.754,4534.7,4534.6,3.9503]
[1759722100752,0.754,4534.7,4534.6,1.93149731]
[1759722101050,0.754,4534.7,4534.6,1.62339731]
[1759722101350,0.754,4534.7,4534.6,0.4344]
[1759722101552,0.754,4534.7,4534.6,0.2168]
[1759722101951,0.754,4534.7,4534.6,1.40579731]
[1759722103055,0.737,4534.6,4534.5,1.18899731]
[1759722103955,0.94619,4534.5,4534.4,0.00246999]
[1759722104150,1.25939,4534.5,4534.4,0.00246999]
[1759722105057,0.8626,4534.5,4534.4,0.00246999]
[1759722105654,0.8626,4534.5,4534.4,0.21926999]
[1759722106057,1.0836,4534.5,4534.4,0.21926999]
[1759722106949,0.8626,4534.5,4534.4,0.74496999]
[1759722108252,0.8626,4534.5,4534.4,0.43686999]
[1759722111864,0.8626,4534.5,4534.4,0.76736999]
[1759722113956,0.737,4534.5,4534.4,0.76736999]
[1759722114257,0.3132,4534.5,4534.4,0.76736999]
[1759722115058,0.5328,4534.5,4534.4,0.76736999]
[1759722115561,0.7554,4534.5,4534.4,0.76736999]
[1759722115763,0.8867,4534.5,4534.4,0.76736999]
[1759722119059,0.7554,4534.5,4534.4,0.76736999]
[1759722121267,0.8867,4534.5,4534.4,0.76736999]
[1759722122865,1.66502674,4534.5,4534.4,0.00246999]
[1759722123865,7.44335348,4534.5,4534.4,0.00246999]
[1759722124670,7.90011608,4534.5,4534.4,0.00246999]
[1759722124972,7.34278934,4534.5,4534.4,0.00246999]
[1759722125468,8.12111608,4534.5,4534.4,0.00246999]
[1759722126070,7.90011608,4534.5,4534.4,0.00246999]
[1759722126265,8.12111608,4534.5,4534.4,0.00246999]
[1759722129269,8.12111608,4534.5,4533.3,0.3305]
[1759722129270,1.15256,4533.7,4533.4,1.18965328]
[1759722129567,1.15256,4533.7,4533.2,0.2181]
[1759722129568,0.7557,4533.3,4533.2,0.2181]
[1759722129760,1.53402674,4533.3,4533.2,0.4238]
[1759722129967,1.53402674,4533.3,4533.2,0.7543]
[1759722130167,1.53402674,4533.3,4533.2,0.75693017]
[1759722133471,1.53402674,4533.3,4533.2,0.42643017]
[1759722133873,1.53402674,4533.3,4533.2,1.61446179]
[1759722134069,1.53402674,4533.3,4533.2,0.00263017]
[1759722134477,1.75502674,4533.3,4533.2,0.00263017]
[1759722151386,1.53402674,4533.3,4533.2,0.00263017]
[1759722151574,1.75502674,4533.3,4533.2,0.00263017]
[1759722151974,1.53402674,4533.3,4533.2,0.00263017]
[1759722152482,1.75502674,4533.3,4533.2,0.00263017]
[1759722156393,2.21264113,4533.3,4533.2,0.00263017]
[1759722163400,1.99164113,4533.3,4533.2,0.00263017]
[1759722163605,2.21264113,4533.3,4533.2,0.00263017]
[1759722165006,2.36907764,4533.3,4533.2,0.00263017]
[1759722169511,2.54497764,4533.3,4533.2,0.00263017]
[1759722169713,2.76597764,4533.3,4533.2,0.00263017]
[1759722170106,1.21331439,4533.3,4533.2,0.76363017]
[1759722170310,1.43431439,4533.3,4533.2,0.76363017]
[1759722171105,1.43431439,4533.3,4533.2,0.43603017]
[1759722172008,1.43431439,4533.3,4533.2,0.76363017]
[1759722172407,1.43431439,4533.3,4533.2,0.43603017]
[1759722173513,1.43431439,4533.3,4533.2,0.76363017]
[1759722174313,1.21331439,4533.3,4533.2,0.76363017]
[1759722174516,1.43431439,4533.3,4533.2,0.76363017]
[1759722177813,0.39688,4533.6,4533.5,0.39688]
[1759722177814,0.2072,4533.6,4533.5,0.39688]
[1759722178018,0.7568,4533.6,4533.5,4.36568]
[1759722180420,0.7568,4533.6,4533.5,3.9688]
[1759722180617,0.7482,4533.4,4533.3,1.40403162]
[1759722181219,0.7482,4533.4,4533.3,0.216]
[1759722181419,0.5358,4533.3,4533.2,1.19066179]
[1759722181622,0.7482,4533.3,4533.2,1.40666179]
[1759722181827,0.7482,4533.3,4533.2,1.62406179]
[1759722182926,0.5358,4533.3,4533.2,1.95166179]
[1759722183318,0.60405,4533.9,4533.8,0.216]
[1759722183621,1.03745,4533.9,4533.8,0.216]
[1759722183927,1.36605,4533.9,4533.8,0.216]
[1759722184317,0.39686,4533.7,4533.2,1.58756179]
[1759722184521,0.7482,4533.3,4533.2,1.95166179]
[1759722189323,0.7482,4533.3,4533.2,1.62406179]
[1759722190117,1.68296325,4533.3,4533.2,0.00263017]
[1759722190523,1.90396325,4533.3,4533.2,0.00263017]
[1759722191328,2.35942713,4533.3,4533.2,0.00263017]
[1759722197429,1.20366388,4533.3,4533.2,0.00263017]
[1759722197629,1.42466388,4533.3,4533.2,0.00263017]
[1759722198634,1.20366388,4533.3,4533.2,0.00263017]
[1759722198834,1.42466388,4533.3,4533.2,0.00263017]
[1759722199034,1.20366388,4533.3,4533.2,0.00263017]
[1759722199228,1.42466388,4533.3,4533.2,0.00263017]
[1759722199629,1.20366388,4533.3,4533.2,0.21863017]
[1759722199841,1.42466388,4533.3,4533.2,0.74503017]
[1759722201537,0.9692,4533.3,4533.2,0.74503017]
[1759722208235,0.9692,4533.3,4533.2,0.43003017]
[1759722208844,0.5358,4533.3,4533.2,1.14194017]
[1759722209140,0.7572,4533.3,4533.2,0.00263017]
[1759722209336,0.7572,4533.3,4533.2,0.22313017]
[1759722210630,0.7572,4533.3,4533.2,0.00263017]
[1759722217042,0.7572,4533.3,4533.2,0.22893017]
[1759722217943,0.9782,4533.3,4533.2,0.22893017]
[1759722218139,1.4351054,4533.3,4533.2,0.22893017]
[1759722219540,1.4351054,4533.3,4533.2,0.00263017]
[1759722226955,1.4351054,4533.3,4533.2,0.22893017]
[1759722230254,1.2141054,4533.3,4533.2,0.76463017]
[1759722230450,1.4351054,4533.3,4533.2,0.76463017]
[1759722231056,1.4351054,4533.3,4533.2,0.43943017]
[1759722231558,1.2141054,4533.3,4533.2,0.76463017]
[1759722231853,0.7779,4533.9,4533.8,0.4329]
[1759722232053,1.45585125,4533.9,4533.8,0.4329]
[1759722232256,0.5573,4533.9,4533.8,0.7581]
[1759722233258,0.7779,4533.9,4533.8,0.7581]
[1759722233452,0.7779,4533.9,4533.8,0.4329]
[1759722233654,0.7779,4533.8,4533.7,1.19101493]
[1759722233858,1.17476,4533.7,4533.6,1.19101493]
[1759722234056,1.05526,4533.7,4533.5,1.19101493]
[1759722234356,1.55665633,4533.6,4533.5,1.19101493]
[1759722236259,1.77765633,4533.6,4533.5,1.19101493]
[1759722237255,1.77765633,4533.6,4533.4,1.19101493]
[1759722237256,0.9096,4533.5,4533.4,1.19101493]
[1759722237957,0.7779,4533.3,4533.2,0.62193017]
[1759722238162,0.9989,4533.3,4533.2,0.62193017]
[1759722238454,0.9989,4533.3,4533.2,0.22503017]
[1759722238856,0.9989,4533.3,4533.2,1.41437501]
[1759722239758,1.77765633,4533.3,4533.2,1.19197501]
[1759722242063,1.77765633,4533.3,4533.2,1.41437501]
[1759722243562,1.77765633,4533.3,4533.2,1.19197501]
[1759722243563,2.17455633,4533.3,4533.2,1.19197501]
[1759722243763,2.17455633,4533.3,4533.2,0.00263017]
[1759722244360,0.96602,4533.0,4532.9,0.02206118]
[1759722244556,2.86403266,4533.0,4532.9,0.02206118]
[1759722244760,2.30627633,4533.0,4532.9,0.02206118]
[1759722245360,2.30627633,4533.0,4532.9,0.02445864]
[1759722246161,2.08527633,4533.0,4532.9,0.02445864]
[1759722246360,2.30627633,4533.0,4532.9,0.02445864]
[1759722248262,2.30627633,4533.0,4532.9,0.24685864]
[1759722248463,2.08527633,4533.0,4532.9,0.24685864]
[1759722248666,2.30627633,4533.0,4532.9,0.02445864]
[1759722248964,1.68835633,4533.0,4532.9,0.24685864]
[1759722249170,1.68835633,4533.0,4532.9,0.57205864]
[1759722249370,1.90935633,4533.0,4532.9,0.57205864]
[1759722250874,1.68835633,4533.0,4532.9,0.57205864]
[1759722251069,0.7779,4533.0,4532.9,0.78255864]
[1759722251372,0.7783,4533.0,4532.9,0.78255864]
[1759722251670,0.9989,4533.0,4532.9,0.78255864]
[1759722252071,0.7779,4533.0,4532.9,0.78255864]
[1759722252473,0.9989,4533.0,4532.9,0.78255864]
[1759722254684,0.77875633,4533.3,4533.2,0.7581]
[1759722254685,1.33605633,4533.3,4533.2,0.7581]
[1759722254881,1.55705633,4533.3,4533.2,0.7581]
[1759722255082,1.77765633,4533.3,4533.2,0.7581]
[1759722256389,1.55665633,4533.3,4533.2,0.7581]
[1759722256690,0.5615,4533.3,4533.2,1.15501]
[1759722256881,0.7783,4533.3,4533.2,1.15501]
[1759722257085,0.9989,4533.3,4533.2,0.7581]
[1759722257287,0.7779,4533.3,4533.2,0.7581]
[1759722260186,0.1317,4534.0,4533.2,0.7581]
[1759722260490,1.04981,4534.3,4534.2,0.7669]
[1759722260682,0.94881,4534.3,4534.2,0.7669]
[1759722260887,1.16981,4534.3,4534.2,0.7669]
[1759722261086,1.39521,4534.3,4534.2,0.7669]
[1759722261883,2.17396633,4534.3,4534.2,0.7669]
[1759722262488,2.17396633,4534.3,4533.7,1.18934484]
[1759722262489,0.39685,4533.9,4533.7,1.18934484]
[1759722262685,0.7774,4533.6,4533.5,1.18934484]
[1759722262885,0.77875633,4533.8,4533.3,1.41034484]
[1759722262886,1.30438,4533.5,4533.3,1.41034484]
[1759722263188,1.55615633,4533.4,4533.3,1.62774484]
[1759722263784,1.55615633,4533.4,4533.3,1.40674484]
[1759722266989,1.55615633,4533.4,4533.3,0.2174]
[1759722267889,0.3395,4533.4,4533.3,0.7669]
[1759722268188,0.5605,4533.6,4533.5,0.7669]
[1759722268394,0.773,4533.6,4533.5,0.7669]
[1759722271795,0.552,4533.6,4533.5,0.7669]
[1759722272291,0.52694,4534.0,4533.5,0.7669]
[1759722272292,0.3426,4534.0,4533.9,0.39685]
[1759722272496,0.9075,4534.0,4533.9,1.16375]
[1759722272692,1.68625633,4534.0,4533.9,1.16375]
[1759722273492,0.9075,4534.0,4533.9,0.7669]
[1759722276398,0.9075,4534.0,4533.9,0.4267]
[1759722276594,0.9075,4534.0,4533.9,0.2174]
[1759722276897,0.7489,4533.8,4533.7,3.4238]
[1759722278597,0.7489,4533.8,4533.7,3.9423]
[1759722282100,0.7489,4533.8,4533.7,3.2078]
[1759722282292,0.9699,4533.8,4533.7,3.2078]
[1759722285293,0.7561,4533.8,4533.7,3.9423]
[1759722288804,0.9699,4533.8,4533.7,3.9423]
[1759722289103,0.9699,4533.8,4533.7,3.6316]
[1759722289303,0.9699,4533.8,4533.7,3.4135]
[1759722290101,0.9699,4533.8,4533.7,3.9583]
[1759722291206,0.9699,4533.8,4533.7,0.7505]
[1759722293408,0.9699,4533.8,4533.7,0.4109]
[1759722294809,0.9699,4533.8,4533.7,0.7505]
[1759722295814,0.221,4533.8,4533.7,2.33669484]
[1759722295999,0.221,4533.8,4533.7,1.60024484]
[1759722296312,0.3156,4533.8,4533.7,1.93984484]
[1759722296504,0.5366,4533.8,4533.7,1.93984484]
[1759722297511,0.9735,4533.8,4533.7,1.93984484]
[1759722298908,1.14931,4534.3,4534.2,0.2057]
[1759722299212,1.83318172,4534.3,4534.2,0.2057]
[1759722299411,1.83318172,4534.3,4534.2,0.5453]
[1759722300013,1.61218172,4534.3,4534.2,0.5453]
[1759722300310,1.83318172,4534.3,4534.2,0.5453]
[1759722300711,0.52994,4534.0,4533.9,0.5453]
[1759722300910,1.28244,4534.0,4533.9,0.2057]
[1759722301105,1.3488359,4534.0,4533.9,0.7505]
[1759722301416,0.7575,4534.0,4533.9,0.7505]
[1759722302216,0.5365,4534.0,4533.9,0.7505]
[1759722302515,0.7575,4534.0,4533.9,0.7505]
[1759722302916,0.5365,4534.0,4533.9,0.7505]
[1759722303413,1.1066,4534.0,4533.9,0.4109]
[1759722303616,1.1066,4534.0,4533.9,0.7505]
[1759722304107,1.57006884,4534.0,4533.9,0.4109]
[1759722304302,1.57006884,4534.0,4533.9,0.2057]
[1759722304508,0.7525,4533.8,4533.7,1.39504484]
[1759722305610,0.39685,4533.9,4533.7,1.60024484]
[1759722305815,0.221,4534.0,4533.9,0.4109]
[1759722306115,0.90546013,4534.0,4533.9,0.7505]
[1759722306302,1.22106013,4534.0,4533.9,0.7505]
[1759722306613,0.77916013,4534.0,4533.9,0.7505]
[1759722306912,0.5366,4534.3,4534.2,0.7505]
[1759722307111,1.00020454,4534.3,4534.2,0.7505]
[1759722307308,1.43710454,4534.3,4534.2,0.7505]
[1759722307515,1.43710454,4534.3,4534.2,0.4109]
[1759722309116,1.21610454,4534.3,4534.2,0.7505]
[1759722309318,0.9735,4534.3,4534.2,0.7505]
[1759722309517,0.7525,4534.3,4534.2,0.7505]
[1759722313515,0.3156,4534.2,4534.0,1.19034627]
[1759722313816,0.7525,4534.1,4534.0,1.19034627]
[1759722314916,0.96684,4534.0,4533.9,1.19034627]
[1759722315108,0.96684,4534.0,4533.4,4.78701072]
[1759722315109,0.3156,4533.9,4533.8,1.19034627]
[1759722315314,0.7525,4533.9,4533.8,1.19034627]
[1759722316221,0.7525,4533.7,4533.6,1.19034627]
[1759722317717,1.68680449,4533.7,4533.6,1.19034627]
[1759722317917,0.39691,4533.2,4533.0,1.19034627]
[1759722318221,1.27592,4533.0,4532.9,3.44245864]
[1759722318414,1.27592,4533.0,4532.9,0.23465864]
[1759722320726,0.879,4533.0,4532.9,0.23465864]
[1759722323111,0.879,4533.0,4532.9,0.77845864]
[1759722324430,0.879,4533.0,4532.9,1.17538864]
[1759722324621,0.7439,4533.0,4532.9,0.77845864]
[1759722324923,0.879,4533.0,4532.9,0.77845864]
[1759722325424,0.879,4533.0,4532.9,0.45785864]
[1759722325721,0.879,4533.0,4532.9,0.77845864]
[1759722327018,0.53199,4533.5,4533.0,0.39692]
[1759722327223,0.95818,4533.5,4533.4,0.754]
[1759722327521,1.17918,4533.5,4533.4,0.4334]
[1759722327726,1.49688,4533.5,4533.4,0.2102]
[1759722334532,1.1,4533.5,4533.4,0.5412]
[1759722334832,1.1,4533.5,4533.4,0.2102]
[1759722336031,0.7548,4533.1,4533.0,3.9647]
[1759722336433,0.7548,4533.1,4533.0,0.4259]
[1759722337224,0.39692,4533.0,4532.9,0.02445864]
[1759722337535,0.94642,4533.0,4532.9,0.02445864]
[1759722337833,1.27842,4533.0,4532.9,0.23315864]
[1759722340633,3.3409,4534.0,4533.4,0.4259]
[1759722340834,3.3409,4534.0,4533.7,0.7569]
[1759722340835,0.4228,4533.8,4533.7,0.7569]